[Event "*** Titled Tuesday 3|2 Blitz (Early)"]
[Site "Chess.com"]
[Date "2017.01.03"]
[Round "3"]
[White "RitvarsReimanis"]
[Black "Ginger_GM"]
[Result "0-1"]
[WhiteElo "2433"]
[BlackElo "2463"]
[TimeControl "180+2"]
[EndTime "11:37:19 PST"]
[Termination "Ginger_GM won by resignation"]

1. d4 {[%clk 0:03:02]} 1... e6 {[%clk 0:03:00.2]} 2. c4 {[%clk 0:03:00.4]} 2...
f5 {[%clk 0:03:00.9]} 3. Nf3 {[%clk 0:02:55.1]} 3... Nf6 {[%clk 0:03:01.7]} 4.
e3 {[%clk 0:02:56.6]} 4... b6 {[%clk 0:03:01.7]} 5. b3 {[%clk 0:02:57.4]} 5...
Bb7 {[%clk 0:03:01.9]} 6. Bb2 {[%clk 0:02:58.8]} 6... Bb4+ {[%clk 0:03:02]} 7.
Nbd2 {[%clk 0:02:59.2]} 7... Ne4 {[%clk 0:02:46.7]} 8. a3 {[%clk 0:02:48.5]}
8... Bc3 {[%clk 0:02:40.6]} 9. Bxc3 {[%clk 0:02:43.7]} 9... Nxc3 {[%clk
0:02:41.2]} 10. Qc2 {[%clk 0:02:44.6]} 10... Ne4 {[%clk 0:02:42.5]} 11. Bd3
{[%clk 0:02:44.1]} 11... Nxd2 {[%clk 0:02:43.1]} 12. Qxd2 {[%clk 0:02:44.9]}
12... O-O {[%clk 0:02:43.1]} 13. Qe2 {[%clk 0:02:43.1]} 13... d6 {[%clk
0:02:42.5]} 14. e4 {[%clk 0:02:27.2]} 14... Nd7 {[%clk 0:02:37.8]} 15. Rd1
{[%clk 0:02:18.4]} 15... Qf6 {[%clk 0:02:29.8]} 16. exf5 {[%clk 0:02:13.5]}
16... exf5 {[%clk 0:02:27.6]} 17. O-O {[%clk 0:02:14.6]} 17... Rae8 {[%clk
0:02:28.2]} 18. Qd2 {[%clk 0:02:10.3]} 18... Bxf3 {[%clk 0:02:28.6]} 19. gxf3
{[%clk 0:02:12.2]} 19... Qxd4 {[%clk 0:02:22.8]} 20. c5 {[%clk 0:02:08.7]} 20...
Kh8 {[%clk 0:02:06.5]} 21. cxd6 {[%clk 0:02:02.3]} 21... Ne5 {[%clk 0:01:37.5]}
22. Be2 {[%clk 0:01:56.4]} 22... Qxd2 {[%clk 0:01:14.4]} 23. Rxd2 {[%clk
0:01:58.3]} 23... cxd6 {[%clk 0:01:15]} 24. Rxd6 {[%clk 0:01:59.9]} 24... Ng6
{[%clk 0:01:02.6]} 25. Bb5 {[%clk 0:01:49.5]} 25... Re5 {[%clk 0:00:58.8]} 26.
a4 {[%clk 0:01:44.3]} 26... Nh4 {[%clk 0:00:53.3]} 27. Rfd1 {[%clk 0:01:29.6]}
27... Nxf3+ {[%clk 0:00:45.9]} 28. Kg2 {[%clk 0:01:31]} 28... Nh4+ {[%clk
0:00:45.8]} 29. Kg3 {[%clk 0:01:29]} 29... Ng6 {[%clk 0:00:46]} 30. Rd8 {[%clk
0:01:28]} 30... f4+ {[%clk 0:00:45]} 31. Kf3 {[%clk 0:01:23.9]} 31... Rf5 {[%clk
0:00:42.7]} 32. Rxf8+ {[%clk 0:01:22.5]} 32... Rxf8 {[%clk 0:00:43.5]} 33. Rd7
{[%clk 0:01:22.1]} 33... Ne5+ {[%clk 0:00:43.9]} 34. Ke4 {[%clk 0:01:22]} 34...
Nxd7 {[%clk 0:00:42.6]} 35. Bxd7 {[%clk 0:01:23.9]} 35... g5 {[%clk 0:00:42.6]}
36. Kd4 {[%clk 0:01:24.3]} 36... Kg7 {[%clk 0:00:43.6]} 37. Kc4 {[%clk
0:01:24.5]} 37... Rf7 {[%clk 0:00:40.6]} 38. Bg4 {[%clk 0:01:24.2]} 38... Kf6
{[%clk 0:00:40.6]} 39. Kd5 {[%clk 0:01:23.9]} 39... Kg6 {[%clk 0:00:38.4]} 40.
Ke6 {[%clk 0:01:24.3]} 40... Rf6+ {[%clk 0:00:37.4]} 41. Ke5 {[%clk 0:01:22.7]}
41... h5 {[%clk 0:00:37.2]} 42. Bxh5+ {[%clk 0:01:22.5]} 42... Kg7 {[%clk
0:00:37]} 43. Bf3 {[%clk 0:01:18.9]} 43... Kf7 {[%clk 0:00:33.4]} 44. h3 {[%clk
0:01:13.9]} 44... Ke7 {[%clk 0:00:34.5]} 45. Bg4 {[%clk 0:01:11.1]} 45... a5
{[%clk 0:00:32]} 46. Bf3 {[%clk 0:01:07.6]} 46... Rf8 {[%clk 0:00:32.2]} 47. Bd5
{[%clk 0:01:04.7]} 47... Kd7 {[%clk 0:00:32]} 48. f3 {[%clk 0:00:58.4]} 48...
Kc7 {[%clk 0:00:32.7]} 49. Be4 {[%clk 0:00:58.5]} 49... Kd7 {[%clk 0:00:28.8]}
50. Bd5 {[%clk 0:00:58.7]} 50... Ke7 {[%clk 0:00:29.9]} 51. Be4 {[%clk
0:00:59.1]} 51... Rc8 {[%clk 0:00:31.2]} 52. Kf5 {[%clk 0:00:50.6]} 52... Rc5+
{[%clk 0:00:32.1]} 53. Kg4 {[%clk 0:00:51.9]} 53... Kd6 {[%clk 0:00:33.4]} 54.
Bg6 {[%clk 0:00:50.6]} 54... Re5 {[%clk 0:00:33.3]} 55. Bf7 {[%clk 0:00:51.4]}
55... Kc5 {[%clk 0:00:34.1]} 56. Bg8 {[%clk 0:00:50]} 56... Kd4 {[%clk 0:00:35]}
57. Bf7 {[%clk 0:00:50.5]} 57... Ke3 {[%clk 0:00:35.5]} 58. Bg8 {[%clk
0:00:51.6]} 58... Rc5 {[%clk 0:00:36.3]} 59. Bf7 {[%clk 0:00:52]} 59... b5
{[%clk 0:00:37.5]} 60. axb5 {[%clk 0:00:52.6]} 60... Rxb5 {[%clk 0:00:38.5]} 61.
Bc4 {[%clk 0:00:54]} 61... Rc5 {[%clk 0:00:39.6]} 62. Bf7 {[%clk 0:00:54.9]}
62... Rc1 {[%clk 0:00:38.9]} 63. Bd5 {[%clk 0:00:46.9]} 63... Rg1+ {[%clk
0:00:37.4]} 64. Kh5 {[%clk 0:00:46.2]} 64... Rg3 {[%clk 0:00:38.4]} 65. h4
{[%clk 0:00:46.9]} 65... gxh4 {[%clk 0:00:37.9]} 66. Kxh4 {[%clk 0:00:48.8]}
66... Kd4 {[%clk 0:00:39.2]} 67. Be4 {[%clk 0:00:47.7]} 67... Kc3 {[%clk
0:00:38.6]} 68. Bd5 {[%clk 0:00:49]} 68... Kb4 {[%clk 0:00:39.6]} 69. Kh5 {[%clk
0:00:48.9]} 69... Rg1 {[%clk 0:00:40.5]} 70. Kh4 {[%clk 0:00:48.7]} 70... Kc5
{[%clk 0:00:41]} 71. Be4 {[%clk 0:00:49]} 71... Kd4 {[%clk 0:00:42.1]} 72. Kh5
{[%clk 0:00:49]} 72... Ke3 {[%clk 0:00:43.2]} 73. Kh4 {[%clk 0:00:43.7]} 73...
Rg3 {[%clk 0:00:45.1]} 74. Bd5 {[%clk 0:00:42.9]} 74... Rxf3 {[%clk 0:00:45.5]}
75. Bxf3 {[%clk 0:00:41.3]} 75... Kxf3 {[%clk 0:00:45.7]} 76. b4 {[%clk
0:00:41.9]} 76... axb4 {[%clk 0:00:45.9]} 0-1

[Event "*** Titled Tuesday 3|2 Blitz (Early)"]
[Site "Chess.com"]
[Date "2017.01.03"]
[Round "3"]
[White "Th3ChessViking"]
[Black "Rsnr"]
[Result "1-0"]
[WhiteElo "2421"]
[BlackElo "2479"]
[TimeControl "180+2"]
[EndTime "11:37:43 PST"]
[Termination "Th3ChessViking won by checkmate"]

1. c4 {[%clk 0:03:02]} 1... c6 {[%clk 0:03:01.3]} 2. g3 {[%clk 0:03:00.6]} 2...
d5 {[%clk 0:03:03.2]} 3. Bg2 {[%clk 0:03:01.8]} 3... Nf6 {[%clk 0:03:04.8]} 4.
Nf3 {[%clk 0:02:59.7]} 4... Bf5 {[%clk 0:03:02.6]} 5. cxd5 {[%clk 0:02:55.3]}
5... cxd5 {[%clk 0:03:04.5]} 6. Qb3 {[%clk 0:02:56.5]} 6... Nc6 {[%clk
0:03:05.7]} 7. d3 {[%clk 0:02:41.8]} 7... e5 {[%clk 0:03:00.3]} 8. O-O {[%clk
0:02:40.8]} 8... Qd7 {[%clk 0:02:50.3]} 9. Bg5 {[%clk 0:02:32.5]} 9... Be7
{[%clk 0:02:46.6]} 10. Nc3 {[%clk 0:02:27.2]} 10... Be6 {[%clk 0:02:43.7]} 11.
Na4 {[%clk 0:01:27.9]} 11... O-O {[%clk 0:02:31.1]} 12. Bxf6 {[%clk 0:01:20.6]}
12... gxf6 {[%clk 0:02:33]} 13. Rfc1 {[%clk 0:01:05.6]} 13... Na5 {[%clk
0:02:34]} 14. Qd1 {[%clk 0:01:06.4]} 14... Rfc8 {[%clk 0:02:34.2]} 15. Nc3
{[%clk 0:00:51.5]} 15... b5 {[%clk 0:02:24.2]} 16. e4 {[%clk 0:00:39.7]} 16...
dxe4 {[%clk 0:02:03.9]} 17. dxe4 {[%clk 0:00:38.7]} 17... Qxd1+ {[%clk
0:02:01.5]} 18. Rxd1 {[%clk 0:00:36.7]} 18... Nc4 {[%clk 0:02:03]} 19. Nxb5
{[%clk 0:00:17.4]} 19... Nxb2 {[%clk 0:02:01.8]} 20. Rdc1 {[%clk 0:00:17.5]}
20... Nd3 {[%clk 0:01:54.2]} 21. Rxc8+ {[%clk 0:00:18.1]} 21... Rxc8 {[%clk
0:01:50]} 22. Rd1 {[%clk 0:00:13.8]} 22... Nb2 {[%clk 0:01:24.7]} 23. Rb1 {[%clk
0:00:09.4]} 23... Rc2 {[%clk 0:01:13.8]} 24. Ne1 {[%clk 0:00:06.3]} 24... Rd2
{[%clk 0:01:14.6]} 25. Nf3 {[%clk 0:00:07.2]} 25... Rd1+ {[%clk 0:00:38.9]} 26.
Rxd1 {[%clk 0:00:08.7]} 26... Nxd1 {[%clk 0:00:40.8]} 27. Nxa7 {[%clk
0:00:10.4]} 27... Bxa2 {[%clk 0:00:41.8]} 28. Nc6 {[%clk 0:00:11.4]} 28... Bc5
{[%clk 0:00:43.1]} 29. Nh4 {[%clk 0:00:07.8]} 29... Nxf2 {[%clk 0:00:43.2]} 30.
Kf1 {[%clk 0:00:05.6]} 30... Bc4+ {[%clk 0:00:43]} 31. Ke1 {[%clk 0:00:06.7]}
31... Ng4 {[%clk 0:00:37.4]} 32. h3 {[%clk 0:00:05]} 32... Ne3 {[%clk
0:00:38.6]} 33. Bf3 {[%clk 0:00:06.5]} 33... Kf8 {[%clk 0:00:30.6]} 34. Nf5
{[%clk 0:00:07]} 34... Nxf5 {[%clk 0:00:28.9]} 35. exf5 {[%clk 0:00:08]} 35...
Bd3 {[%clk 0:00:30.5]} 36. g4 {[%clk 0:00:08.6]} 36... e4 {[%clk 0:00:32]} 37.
Be2 {[%clk 0:00:10.1]} 37... Bb1 {[%clk 0:00:32.4]} 38. Kf1 {[%clk 0:00:10.3]}
38... e3 {[%clk 0:00:31.7]} 39. Na5 {[%clk 0:00:10.3]} 39... Bc2 {[%clk
0:00:31.1]} 40. Nc4 {[%clk 0:00:11.5]} 40... Ke7 {[%clk 0:00:30.4]} 41. Nb2
{[%clk 0:00:12.9]} 41... Kd6 {[%clk 0:00:29.5]} 42. Bc4 {[%clk 0:00:11.6]} 42...
Bd4 {[%clk 0:00:29.5]} 43. Nd3 {[%clk 0:00:10.7]} 43... Bd1 {[%clk 0:00:30.5]}
44. Nf4 {[%clk 0:00:11.1]} 44... Ke5 {[%clk 0:00:25.2]} 45. Ne2 {[%clk
0:00:10.8]} 45... Bc5 {[%clk 0:00:17.8]} 46. Bxf7 {[%clk 0:00:10.8]} 46... Bc2
{[%clk 0:00:18.8]} 47. Bc4 {[%clk 0:00:10.1]} 47... Be4 {[%clk 0:00:19.7]} 48.
Bg8 {[%clk 0:00:09.3]} 48... h6 {[%clk 0:00:20.5]} 49. Bc4 {[%clk 0:00:10.5]}
49... Bf3 {[%clk 0:00:21.6]} 50. Bb5 {[%clk 0:00:10.2]} 50... Bb4 {[%clk
0:00:22.6]} 51. Ba6 {[%clk 0:00:11.3]} 51... Bd5 {[%clk 0:00:23.3]} 52. Bd3
{[%clk 0:00:12.2]} 52... Bb3 {[%clk 0:00:23.5]} 53. Bb5 {[%clk 0:00:13.1]} 53...
Bd2 {[%clk 0:00:24.9]} 54. Bd3 {[%clk 0:00:13.6]} 54... Bd5 {[%clk 0:00:26.3]}
55. Bb5 {[%clk 0:00:14.6]} 55... Ke4 {[%clk 0:00:27.8]} 56. Ba6 {[%clk 0:00:10]}
56... Kf3 {[%clk 0:00:29.1]} 57. Bd3 {[%clk 0:00:11.4]} 57... Bb7 {[%clk
0:00:27.6]} 58. Bc4 {[%clk 0:00:12.2]} 58... Be4 {[%clk 0:00:28.4]} 59. Bb5
{[%clk 0:00:13.6]} 59... Bb4 {[%clk 0:00:26.8]} 60. Bc4 {[%clk 0:00:13.5]} 60...
Bc5 {[%clk 0:00:27.6]} 61. Bb5 {[%clk 0:00:14.3]} 61... Bd6 {[%clk 0:00:27]} 62.
Ba6 {[%clk 0:00:15.5]} 62... Be5 {[%clk 0:00:28.2]} 63. Bc4 {[%clk 0:00:15.7]}
63... Bc6 {[%clk 0:00:17.7]} 64. Bf7 {[%clk 0:00:12.3]} 64... Bb5 {[%clk
0:00:17]} 65. Bd5# {[%clk 0:00:13.2]} 1-0

[Event "*** Titled Tuesday 3|2 Blitz (Early)"]
[Site "Chess.com"]
[Date "2017.01.03"]
[Round "3"]
[White "fastestmindalive"]
[Black "Rating-Schmating"]
[Result "0-1"]
[WhiteElo "2420"]
[BlackElo "2273"]
[TimeControl "180+2"]
[EndTime "11:38:18 PST"]
[Termination "Rating-Schmating won by checkmate"]

1. e4 {[%clk 0:03:01.6]} 1... e6 {[%clk 0:03:01]} 2. b3 {[%clk 0:02:59.8]} 2...
d5 {[%clk 0:03:00.3]} 3. Bb2 {[%clk 0:03:01.2]} 3... Nf6 {[%clk 0:03:01.5]} 4.
e5 {[%clk 0:03:02.2]} 4... Nfd7 {[%clk 0:03:02.6]} 5. f4 {[%clk 0:03:03.9]} 5...
c5 {[%clk 0:03:03.8]} 6. Qg4 {[%clk 0:03:05.5]} 6... Nc6 {[%clk 0:03:03]} 7. Nf3
{[%clk 0:03:07.2]} 7... h5 {[%clk 0:03:02.5]} 8. Qg3 {[%clk 0:03:08.3]} 8... Ne7
{[%clk 0:03:02.7]} 9. Be2 {[%clk 0:03:09]} 9... Nf5 {[%clk 0:03:03.6]} 10. Qf2
{[%clk 0:03:10.6]} 10... b6 {[%clk 0:03:03.6]} 11. Nc3 {[%clk 0:03:12.2]} 11...
a6 {[%clk 0:03:04.1]} 12. Nd1 {[%clk 0:03:13.7]} 12... d4 {[%clk 0:03:04.2]} 13.
c3 {[%clk 0:03:14.2]} 13... dxc3 {[%clk 0:03:04.5]} 14. dxc3 {[%clk 0:03:16.1]}
14... Bb7 {[%clk 0:03:05.8]} 15. Ne3 {[%clk 0:03:17.5]} 15... Nxe3 {[%clk
0:03:06.6]} 16. Qxe3 {[%clk 0:03:19.1]} 16... Qc7 {[%clk 0:03:07.8]} 17. O-O-O
{[%clk 0:03:18.2]} 17... Be7 {[%clk 0:03:08.3]} 18. Bd3 {[%clk 0:03:18.3]} 18...
O-O-O {[%clk 0:03:09.2]} 19. Be4 {[%clk 0:03:19.6]} 19... Nb8 {[%clk 0:03:09.3]}
20. c4 {[%clk 0:03:16.2]} 20... Bxe4 {[%clk 0:03:08.7]} 21. Qxe4 {[%clk
0:03:17.2]} 21... Qc6 {[%clk 0:03:10.3]} 22. Qxc6+ {[%clk 0:03:16.3]} 22... Nxc6
{[%clk 0:03:12.2]} 23. Bc3 {[%clk 0:03:17.3]} 23... Kc7 {[%clk 0:03:12.7]} 24.
Kc2 {[%clk 0:03:18.6]} 24... Rxd1 {[%clk 0:03:07.4]} 25. Rxd1 {[%clk 0:03:20.5]}
25... Rd8 {[%clk 0:03:07.5]} 26. Rg1 {[%clk 0:03:22.2]} 26... h4 {[%clk
0:03:06.8]} 27. h3 {[%clk 0:03:22.3]} 27... b5 {[%clk 0:03:04.8]} 28. Re1 {[%clk
0:03:20.7]} 28... bxc4 {[%clk 0:03:04.4]} 29. bxc4 {[%clk 0:03:22.6]} 29... Nd4+
{[%clk 0:03:01.6]} 30. Bxd4 {[%clk 0:03:22.9]} 30... cxd4 {[%clk 0:03:03]} 31.
Re4 {[%clk 0:03:23.1]} 31... Kc6 {[%clk 0:03:03.4]} 32. Rxd4 {[%clk 0:03:22.6]}
32... Rxd4 {[%clk 0:03:01.5]} 33. Nxd4+ {[%clk 0:03:24.5]} 33... Kc5 {[%clk
0:03:02.8]} 34. Kc3 {[%clk 0:03:25.7]} 34... g5 {[%clk 0:02:58.9]} 35. Nb3+
{[%clk 0:03:26.5]} 35... Kc6 {[%clk 0:02:59.5]} 36. fxg5 {[%clk 0:03:25.9]}
36... Bxg5 {[%clk 0:03:00.5]} 37. Kd4 {[%clk 0:03:27.2]} 37... Bf4 {[%clk
0:02:59.8]} 38. c5 {[%clk 0:03:28]} 38... Bg3 {[%clk 0:02:58.8]} 39. Na5+ {[%clk
0:03:28.9]} 39... Kb5 {[%clk 0:02:59.5]} 40. c6 {[%clk 0:03:09.6]} 40... Bf2+
{[%clk 0:02:52]} 41. Ke4 {[%clk 0:02:52.2]} 41... Bb6 {[%clk 0:02:52]} 42. Nb3
{[%clk 0:02:28.2]} 42... Kxc6 {[%clk 0:02:50.9]} 43. Nd2 {[%clk 0:02:24.8]}
43... Bf2 {[%clk 0:02:49.4]} 44. Nf3 {[%clk 0:02:24.9]} 44... Kd7 {[%clk
0:02:49.8]} 45. Kf4 {[%clk 0:02:24]} 45... Bg3+ {[%clk 0:02:49.8]} 46. Ke4
{[%clk 0:02:20.4]} 46... Bf2 {[%clk 0:02:48.9]} 47. a3 {[%clk 0:02:15.6]} 47...
Ke7 {[%clk 0:02:47.7]} 48. Kd3 {[%clk 0:02:14.2]} 48... Kd7 {[%clk 0:02:37.1]}
49. Kc4 {[%clk 0:02:12.2]} 49... Bg3 {[%clk 0:02:26.1]} 50. Kc5 {[%clk
0:02:08.6]} 50... Kc7 {[%clk 0:02:27.4]} 51. a4 {[%clk 0:02:06]} 51... Bf2+
{[%clk 0:02:26.6]} 52. Kc4 {[%clk 0:02:03.9]} 52... Bg3 {[%clk 0:02:26.5]} 53.
Kc5 {[%clk 0:02:04.9]} 53... Bf2+ {[%clk 0:02:27.5]} 54. Kb4 {[%clk 0:02:06.2]}
54... Bg3 {[%clk 0:02:23.5]} 55. Kc3 {[%clk 0:02:01.1]} 55... Kb6 {[%clk
0:02:22.7]} 56. Kc4 {[%clk 0:01:57.1]} 56... Ka5 {[%clk 0:02:23.1]} 57. Kb3
{[%clk 0:01:57.4]} 57... Kb6 {[%clk 0:02:24.6]} 58. Ng5 {[%clk 0:01:46]} 58...
Bxe5 {[%clk 0:02:25.1]} 59. Nxf7 {[%clk 0:01:47.2]} 59... Bf4 {[%clk 0:02:26.2]}
60. Nh8 {[%clk 0:01:44.3]} 60... Kc5 {[%clk 0:02:20.8]} 61. Ng6 {[%clk
0:01:42.5]} 61... Bg3 {[%clk 0:02:21.4]} 62. Kc3 {[%clk 0:01:43.9]} 62... Kd5
{[%clk 0:02:19.7]} 63. Kd3 {[%clk 0:01:44.6]} 63... Kc5 {[%clk 0:02:18.2]} 64.
Nf8 {[%clk 0:01:44.9]} 64... e5 {[%clk 0:02:17.2]} 65. Kc3 {[%clk 0:01:39.2]}
65... Kd6 {[%clk 0:02:17.9]} 66. Nh7 {[%clk 0:01:38.1]} 66... Kc5 {[%clk
0:02:10.9]} 67. Nf6 {[%clk 0:01:38.1]} 67... Be1+ {[%clk 0:02:11.3]} 68. Kd3
{[%clk 0:01:38.7]} 68... Kb4 {[%clk 0:02:12]} 69. Ke2 {[%clk 0:01:37.5]} 69...
Bg3 {[%clk 0:02:12.5]} 70. Ne4 {[%clk 0:01:19]} 70... Bf4 {[%clk 0:02:08]} 71.
Kd3 {[%clk 0:01:12]} 71... Kxa4 {[%clk 0:02:08]} 72. Kc4 {[%clk 0:01:13.4]}
72... Ka3 {[%clk 0:02:08.8]} 73. Kc3 {[%clk 0:00:57.8]} 73... a5 {[%clk
0:02:10]} 74. Nd6 {[%clk 0:00:57.8]} 74... a4 {[%clk 0:02:03.4]} 75. Nb5+ {[%clk
0:00:58]} 75... Ka2 {[%clk 0:02:04.5]} 76. Kc2 {[%clk 0:00:59.4]} 76... Bg3
{[%clk 0:02:02.1]} 77. Nc3+ {[%clk 0:00:55.6]} 77... Ka3 {[%clk 0:02:02.3]} 78.
Nd5 {[%clk 0:00:56.6]} 78... Be1 {[%clk 0:02:01.8]} 79. Kd1 {[%clk 0:00:56.8]}
79... Bf2 {[%clk 0:02:01.6]} 80. Kc2 {[%clk 0:00:57.1]} 80... Bd4 {[%clk
0:02:01.5]} 81. Ne7 {[%clk 0:00:35.2]} 81... Kb4 {[%clk 0:02:01.1]} 82. Nc6+
{[%clk 0:00:35.7]} 82... Kc4 {[%clk 0:02:01.6]} 83. Na5+ {[%clk 0:00:36.6]}
83... Kd5 {[%clk 0:02:02.4]} 84. Nb7 {[%clk 0:00:36]} 84... a3 {[%clk
0:01:59.9]} 85. Kb3 {[%clk 0:00:36.6]} 85... Bb2 {[%clk 0:02:00.8]} 86. Kc2
{[%clk 0:00:33.3]} 86... Kd4 {[%clk 0:01:59.8]} 87. Na5 {[%clk 0:00:32.7]} 87...
Ke3 {[%clk 0:02:00]} 88. Nb3 {[%clk 0:00:24.5]} 88... Kf2 {[%clk 0:01:59.1]} 89.
Kd3 {[%clk 0:00:25.3]} 89... Kxg2 {[%clk 0:01:59.3]} 90. Ke2 {[%clk 0:00:02.4]}
90... a2 {[%clk 0:01:59.6]} 91. Ke3 {[%clk 0:00:02]} 91... a1=Q {[%clk
0:02:00.3]} 92. Nxa1 {[%clk 0:00:02.7]} 92... Bxa1 {[%clk 0:02:02.2]} 93. Ke2
{[%clk 0:00:04]} 93... Kxh3 {[%clk 0:02:03.8]} 94. Kf1 {[%clk 0:00:05.9]} 94...
Kg3 {[%clk 0:02:05.1]} 95. Kg1 {[%clk 0:00:07.8]} 95... e4 {[%clk 0:02:06.6]}
96. Kh1 {[%clk 0:00:09.7]} 96... e3 {[%clk 0:02:08.5]} 97. Kg1 {[%clk
0:00:11.4]} 97... e2 {[%clk 0:02:10.2]} 98. Kh1 {[%clk 0:00:13.3]} 98... e1=Q#
{[%clk 0:02:11.6]} 0-1

[Event "*** Titled Tuesday 3|2 Blitz (Early)"]
[Site "Chess.com"]
[Date "2017.01.03"]
[Round "3"]
[White "pKiLz5Rn9b"]
[Black "jb2mix"]
[Result "0-1"]
[WhiteElo "2485"]
[BlackElo "2425"]
[TimeControl "180+2"]
[EndTime "11:38:55 PST"]
[Termination "jb2mix won by resignation"]

1. e4 {[%clk 0:03:02]} 1... e5 {[%clk 0:03:00]} 2. Nf3 {[%clk 0:03:02.4]} 2...
Nc6 {[%clk 0:03:01]} 3. Bc4 {[%clk 0:03:03.7]} 3... Nf6 {[%clk 0:02:58]} 4. d3
{[%clk 0:03:04.5]} 4... Be7 {[%clk 0:02:58.6]} 5. O-O {[%clk 0:03:04.1]} 5...
O-O {[%clk 0:02:59.6]} 6. Re1 {[%clk 0:03:05.4]} 6... d6 {[%clk 0:02:58.7]} 7.
a4 {[%clk 0:03:05]} 7... Kh8 {[%clk 0:02:57.3]} 8. h3 {[%clk 0:03:04.1]} 8...
Ng8 {[%clk 0:02:55.1]} 9. Nc3 {[%clk 0:03:04.8]} 9... f5 {[%clk 0:02:38.3]} 10.
Bxg8 {[%clk 0:03:03]} 10... Kxg8 {[%clk 0:02:34.6]} 11. Nd5 {[%clk 0:03:03.4]}
11... Be6 {[%clk 0:02:30.5]} 12. c3 {[%clk 0:03:01.2]} 12... Rb8 {[%clk
0:02:15.9]} 13. b4 {[%clk 0:03:00.5]} 13... Qd7 {[%clk 0:02:10.6]} 14. Nxe7+
{[%clk 0:02:58.8]} 14... Nxe7 {[%clk 0:02:07.3]} 15. Ng5 {[%clk 0:02:58.3]}
15... h6 {[%clk 0:02:06.3]} 16. Nxe6 {[%clk 0:02:58]} 16... Qxe6 {[%clk
0:02:08.2]} 17. Qc2 {[%clk 0:02:43.1]} 17... fxe4 {[%clk 0:02:06.6]} 18. dxe4
{[%clk 0:02:43.5]} 18... Ng6 {[%clk 0:02:07.7]} 19. Qa2 {[%clk 0:02:43.5]} 19...
Rbe8 {[%clk 0:02:02]} 20. Be3 {[%clk 0:02:41]} 20... a6 {[%clk 0:01:58]} 21. b5
{[%clk 0:02:38.1]} 21... a5 {[%clk 0:01:55.4]} 22. Qxe6+ {[%clk 0:02:35.1]}
22... Rxe6 {[%clk 0:01:55.8]} 23. b6 {[%clk 0:02:33.6]} 23... c5 {[%clk
0:01:53.5]} 24. Rab1 {[%clk 0:02:31.8]} 24... Nh4 {[%clk 0:01:43.2]} 25. Red1
{[%clk 0:02:27.8]} 25... g5 {[%clk 0:01:39.5]} 26. Rb5 {[%clk 0:02:24.2]} 26...
Ra8 {[%clk 0:01:38.6]} 27. g3 {[%clk 0:02:24.5]} 27... Ng6 {[%clk 0:01:38.9]}
28. Rb2 {[%clk 0:02:23.7]} 28... Ne7 {[%clk 0:01:30.9]} 29. Rbd2 {[%clk
0:02:22.5]} 29... Nc8 {[%clk 0:01:31.7]} 30. Rb1 {[%clk 0:02:18.4]} 30... Ra6
{[%clk 0:01:31.9]} 31. Rdb2 {[%clk 0:02:19.3]} 31... Kf7 {[%clk 0:01:31.4]} 32.
Kg2 {[%clk 0:02:14.4]} 32... Ke7 {[%clk 0:01:31.8]} 33. Kf3 {[%clk 0:02:06.8]}
33... Kd7 {[%clk 0:01:32.7]} 34. h4 {[%clk 0:02:07.9]} 34... gxh4 {[%clk
0:01:33.2]} 35. gxh4 {[%clk 0:02:09.1]} 35... Kc6 {[%clk 0:01:34.5]} 36. Kg4
{[%clk 0:01:41.7]} 36... Rxb6 {[%clk 0:01:35.2]} 37. Kf5 {[%clk 0:01:36.3]}
37... Re8 {[%clk 0:01:19.6]} 38. Bxh6 {[%clk 0:01:27]} 38... Rxb2 {[%clk
0:01:11]} 39. Rxb2 {[%clk 0:01:27.6]} 39... Nb6 {[%clk 0:01:12.6]} 40. Bg7
{[%clk 0:01:17.3]} 40... Nxa4 {[%clk 0:00:56.1]} 41. Rc2 {[%clk 0:01:14]} 41...
b5 {[%clk 0:00:56.2]} 42. h5 {[%clk 0:01:15]} 42... b4 {[%clk 0:00:57.4]} 43.
cxb4 {[%clk 0:01:16.1]} 43... axb4 {[%clk 0:00:58.4]} 44. h6 {[%clk 0:01:16]}
44... b3 {[%clk 0:00:59.5]} 45. Rc1 {[%clk 0:01:12.3]} 45... b2 {[%clk
0:01:00.5]} 46. Rg1 {[%clk 0:00:44.8]} 46... c4 {[%clk 0:01:01.1]} 47. h7 {[%clk
0:00:41.5]} 47... c3 {[%clk 0:01:01.7]} 48. Bf6 {[%clk 0:00:13.5]} 48... c2
{[%clk 0:00:40.3]} 49. Rg8 {[%clk 0:00:14.6]} 49... c1=Q {[%clk 0:00:41.6]} 50.
Rxe8 {[%clk 0:00:15.1]} 50... Qf4+ {[%clk 0:00:40.6]} 51. Ke6 {[%clk 0:00:15.8]}
51... b1=Q {[%clk 0:00:36.7]} 52. h8=Q {[%clk 0:00:14.9]} 52... Qg4+ {[%clk
0:00:34.8]} 53. Ke7 {[%clk 0:00:10.7]} 53... Qb7+ {[%clk 0:00:30.9]} 54. Kf8
{[%clk 0:00:12.1]} 54... Qgd7 {[%clk 0:00:28.7]} 55. Qg8 {[%clk 0:00:06.2]}
55... Nb2 {[%clk 0:00:20.1]} 56. Qd5+ {[%clk 0:00:06.9]} 56... Kc7 {[%clk
0:00:19.2]} 57. Re7 {[%clk 0:00:05.7]} 57... Qxd5 {[%clk 0:00:19]} 58. exd5
{[%clk 0:00:07.3]} 58... Nd3 {[%clk 0:00:17.2]} 59. Rxd7+ {[%clk 0:00:05]} 59...
Kxd7 {[%clk 0:00:19.1]} 60. f3 {[%clk 0:00:05.8]} 60... Nf4 {[%clk 0:00:20.4]}
61. Kf7 {[%clk 0:00:06]} 61... Nxd5 {[%clk 0:00:21.8]} 62. Bg5 {[%clk
0:00:07.6]} 62... Nc3 {[%clk 0:00:20.8]} 63. Kf6 {[%clk 0:00:08.5]} 63... Ne2
{[%clk 0:00:22.2]} 64. Kf5 {[%clk 0:00:07.3]} 64... Nd4+ {[%clk 0:00:23.3]} 65.
Ke4 {[%clk 0:00:08.7]} 65... Ke6 {[%clk 0:00:24.9]} 66. Bc1 {[%clk 0:00:04]}
66... d5+ {[%clk 0:00:25.3]} 67. Ke3 {[%clk 0:00:05.5]} 67... Kf5 {[%clk
0:00:26.2]} 68. Bb2 {[%clk 0:00:06.9]} 68... Ne6 {[%clk 0:00:27]} 69. Ba1 {[%clk
0:00:07.3]} 69... d4+ {[%clk 0:00:28.1]} 70. Kd3 {[%clk 0:00:08.1]} 70... Kf4
{[%clk 0:00:29.8]} 71. Ke2 {[%clk 0:00:08.9]} 71... Ng5 {[%clk 0:00:31.2]} 72.
Bb2 {[%clk 0:00:05.3]} 72... Nxf3 {[%clk 0:00:31.4]} 73. Kd3 {[%clk 0:00:05.6]}
73... e4+ {[%clk 0:00:31.9]} 74. Kc4 {[%clk 0:00:07]} 74... d3 {[%clk
0:00:32.6]} 75. Kc3 {[%clk 0:00:08.5]} 75... d2 {[%clk 0:00:33.4]} 76. Kc2
{[%clk 0:00:09.1]} 76... e3 {[%clk 0:00:35]} 77. Bc3 {[%clk 0:00:08]} 77... Ke4
{[%clk 0:00:34.7]} 78. Ba5 {[%clk 0:00:07.9]} 78... Kf4 {[%clk 0:00:30.3]} 79.
Kd1 {[%clk 0:00:06.7]} 79... Kg3 {[%clk 0:00:30.2]} 80. Ke2 {[%clk 0:00:03.3]}
80... Nd4+ {[%clk 0:00:31]} 81. Kd1 {[%clk 0:00:04.8]} 81... Nb3 {[%clk
0:00:26.7]} 82. Bb6 {[%clk 0:00:03]} 82... Kf3 {[%clk 0:00:26]} 83. Bxe3 {[%clk
0:00:03]} 83... Kxe3 {[%clk 0:00:27]} 0-1